bitfinex/quotes_BTCUSD_20250610
["timestamp","ask_amount","ask_price","bid_price","bid_amount"]
[1749598874441,0.0186871,110010.0,109990.0,0.6201415]
[1749598874655,0.0186871,110010.0,109990.0,0.5239815]
[1749598874890,0.0186871,110010.0,110000.0,0.09612]
[1749598875120,0.0186871,110010.0,110000.0,0.16824827]
[1749598875752,0.0186871,110010.0,110000.0,0.09612]
[1749598876195,0.0186871,110010.0,110000.0,0.1861015]
[1749598876862,0.44799958,110010.0,110000.0,0.0899815]
[1749598878008,0.0186871,110010.0,110000.0,0.0899815]
[1749598878233,0.0186871,110010.0,110000.0,0.5061815]
[1749598878455,0.0032157,110010.0,110000.0,0.4162]
[1749598878681,0.0032157,110010.0,110000.0,0.50633997]
[1749598878914,0.0032157,110010.0,110000.0,0.5236534]
[1749598879387,0.0032157,110010.0,110000.0,1.49253818]
[1749598880075,0.00060594,110010.0,110000.0,1.09253818]
[1749598880581,0.00060594,110010.0,110000.0,1.36688984]
[1749598880822,0.00060594,110010.0,110000.0,1.83297791]
[1749598881253,0.00060594,110010.0,110000.0,1.70688984]
[1749598881471,0.00060594,110010.0,110000.0,1.69199283]
[1749598881689,0.00060594,110010.0,110000.0,1.71297448]
[1749598882110,0.00060594,110010.0,110000.0,1.69199283]
[1749598882744,0.00060594,110010.0,110000.0,1.30458657]
[1749598882947,0.00060594,110010.0,110000.0,1.69199283]
[1749598883159,0.00060594,110010.0,110000.0,1.71297448]
[1749598883578,0.00060594,110010.0,110000.0,1.69199283]
[1749598883782,0.00060594,110010.0,110000.0,1.30458657]
[1749598883990,0.00060594,110010.0,110000.0,1.69199283]
[1749598884198,0.00060594,110010.0,110000.0,1.69299283]
[1749598884412,0.00060594,110010.0,110000.0,1.71297448]
[1749598884611,0.00060594,110010.0,110000.0,1.69299283]
[1749598884813,0.00060594,110010.0,110000.0,1.62026225]
[1749598885385,0.00060594,110010.0,110000.0,1.23687434]
[1749598885586,0.00060594,110010.0,110000.0,1.64526225]
[1749598885801,0.00060594,110010.0,110000.0,1.6662439]
[1749598886000,0.00060594,110010.0,110000.0,1.67303151]
[1749598887033,0.00060594,110010.0,110000.0,1.3609636]
[1749598887234,0.00060594,110010.0,110000.0,1.76935151]
[1749598888436,0.00011898,110010.0,110000.0,1.76935151]
[1749598888861,0.00011898,110010.0,110000.0,1.3609636]
[1749598889078,0.00011898,110010.0,110000.0,1.79660051]
[1749598889284,0.00011898,110010.0,110000.0,1.67424051]
[1749598889486,0.00011898,110010.0,110000.0,1.79680051]
[1749598891824,2.352e-05,110010.0,110000.0,1.79680051]
[1749598892455,2.352e-05,110010.0,110000.0,6.84680051]
[1749598892674,2.352e-05,110010.0,110000.0,1.3883726]
[1749598892887,2.352e-05,110010.0,110000.0,1.79676051]
[1749598896410,2.352e-05,110010.0,110000.0,1.79684051]
[1749598896616,2.352e-05,110010.0,110000.0,1.67424051]
[1749598896827,2.352e-05,110010.0,110000.0,1.79684051]
[1749598897473,2.352e-05,110010.0,110000.0,1.21635166]
[1749598897917,2.352e-05,110010.0,110000.0,1.62473957]
[1749598898354,2.352e-05,110010.0,110000.0,1.87473957]
[1749598898572,0.00206,110030.0,110020.0,0.4577]
[1749598898795,0.00206,110030.0,110020.0,1.05416131]
[1749598899279,0.00206,110030.0,110020.0,1.45416131]
[1749598899517,0.001,110070.0,110060.0,2.8784]
[1749598899733,0.001,110070.0,110060.0,0.31284]
[1749598899961,0.001,110070.0,110060.0,0.4]
[1749598900179,0.40938791,110070.0,110060.0,0.47179509]
[1749598900403,0.4513267,110070.0,110060.0,0.47179509]
[1749598900689,0.4513267,110070.0,110060.0,0.4]
[1749598900924,0.42488791,110070.0,110060.0,0.4]
[1749598901149,0.42488791,110070.0,110060.0,0.45385964]
[1749598902079,0.001,110070.0,110060.0,0.45385964]
[1749598902988,0.40938791,110070.0,110060.0,0.45385964]
[1749598903435,0.001,110070.0,110060.0,0.05385964]
[1749598903866,0.001,110070.0,110060.0,0.45385964]
[1749598904547,0.40938791,110070.0,110060.0,0.45385964]
[1749598905658,0.001,110070.0,110060.0,0.45385964]
[1749598905867,0.40938791,110070.0,110060.0,0.45385964]
[1749598906497,0.001,110070.0,110060.0,0.45385964]
[1749598906953,0.40938791,110070.0,110060.0,0.45385964]
[1749598907163,0.40938791,110070.0,110060.0,0.4]
[1749598907372,0.40938791,110070.0,110060.0,0.45385672]
[1749598907786,0.40938791,110070.0,110060.0,0.45387982]
[1749598908022,0.40938791,110070.0,110060.0,0.4]
[1749598909331,0.45004855,110070.0,110060.0,0.4]
[1749598909569,0.45004855,110070.0,110060.0,0.45390811]
[1749598910210,0.001,110070.0,110060.0,0.45390811]
[1749598910414,0.45004855,110070.0,110060.0,0.45390811]
[1749598910627,0.45004855,110070.0,110060.0,0.4]
[1749598910865,0.45004855,110070.0,110060.0,0.45392183]
[1749598911075,0.45004855,110070.0,110060.0,0.4]
[1749598911287,0.94510196,110070.0,110050.0,0.07179509]
[1749598911503,0.79004855,110070.0,110060.0,0.05392034]
[1749598911765,0.79004855,110070.0,110060.0,0.05392176]
[1749598911766,0.81729455,110070.0,110060.0,0.05392176]
[1749598912206,0.368246,110070.0,110060.0,0.05392176]
[1749598912657,1.2663431,110070.0,110060.0,0.05392176]
[1749598913258,0.79208244,110070.0,110060.0,0.05392176]
[1749598914732,0.79208244,110070.0,110060.0,0.07179509]
[1749598914957,0.80662329,110070.0,110060.0,0.07179509]
[1749598915170,0.80662329,110070.0,110050.0,0.07179509]
[1749598915384,0.39828685,110070.0,110050.0,0.07179509]
[1749598915602,0.40833644,110060.0,110050.0,0.07179509]
[1749598915824,0.37104085,110070.0,110040.0,0.67523229]
[1749598916095,0.40833644,110060.0,110050.0,0.07191449]
[1749598917794,0.40833644,110060.0,110040.0,0.76658569]
[1749598918012,0.35554085,110070.0,110040.0,0.78218569]
[1749598918242,0.40833644,110060.0,110040.0,0.76798401]
[1749598918916,0.38833644,110060.0,110040.0,0.76798401]
[1749598919149,0.74933644,110070.0,110040.0,0.78298401]
[1749598919389,0.74933644,110070.0,110060.0,0.07191385]
[1749598919608,0.341,110070.0,110060.0,0.07191385]
[1749598920259,0.341,110070.0,110060.0,0.08711385]
[1749598922784,0.341,110070.0,110060.0,0.0152]
[1749598923023,0.341,110070.0,110060.0,0.4152]
[1749598923761,0.74933644,110070.0,110060.0,0.4]
[1749598924000,0.74933644,110070.0,110050.0,0.07191385]
[1749598924001,0.43194836,110070.0,110050.0,0.07191385]
[1749598924239,0.40833644,110060.0,110050.0,0.07191385]
[1749598924469,0.40833644,110060.0,110050.0,0.47191385]
[1749598925398,0.40310644,110060.0,110050.0,0.47191385]
[1749598925627,0.35554085,110070.0,110050.0,0.47191385]
[1749598925628,0.76387729,110070.0,110050.0,0.47191385]
[1749598925851,0.40833644,110060.0,110050.0,0.47191385]
[1749598926714,0.40833644,110060.0,110050.0,0.4]
[1749598927166,0.40833644,110060.0,110050.0,0.48978003]
[1749598927391,0.40833644,110060.0,110050.0,0.08978003]
[1749598927865,0.40833644,110060.0,110050.0,0.4]
[1749598928076,0.40833644,110060.0,110050.0,0.47202328]
[1749598928964,0.74833644,110060.0,110050.0,0.47202328]
[1749598929175,0.34,110060.0,110050.0,0.47202328]
[1749598929391,0.74833644,110060.0,110050.0,0.47202328]
[1749598930718,0.34,110060.0,110050.0,0.47202328]
[1749598930973,0.74833644,110060.0,110050.0,0.07202328]
[1749598931434,0.74833644,110060.0,110050.0,0.47202328]
[1749598933019,0.74833644,110060.0,110050.0,0.47202328]
[1749598933443,0.78917757,110060.0,110050.0,0.47202328]
[1749598934169,0.78917757,110060.0,110050.0,0.4]
[1749598934424,0.78917757,110060.0,110040.0,0.20542003]
[1749598934669,0.44917757,110050.0,110040.0,0.20542003]
[1749598934919,0.44917757,110050.0,110040.0,0.10638003]
[1749598935174,0.44917757,110050.0,110040.0,0.08978003]
[1749598935467,0.44917757,110050.0,110030.0,0.08978003]
[1749598935698,0.89835514,110040.0,110030.0,0.08978003]
[1749598935972,0.45448,110050.0,110020.0,0.12258324]
[1749598936219,0.44917757,110040.0,110030.0,0.4]
[1749598936978,0.44917757,110040.0,110020.0,0.12258324]
[1749598937503,0.46368,110050.0,110020.0,0.12258324]
[1749598937758,0.44917757,110030.0,110020.0,0.12258324]
[1749598938034,0.44917757,110030.0,110020.0,0.10838003]
[1749598938529,0.44917757,110030.0,110020.0,0.003]
[1749598938780,0.44917757,110030.0,110020.0,0.403]
[1749598939031,0.44917757,110030.0,110020.0,0.003]
[1749598939526,0.44917757,110030.0,110020.0,0.0181]
[1749598940499,0.34,110050.0,110020.0,0.0186]
[1749598940743,0.44917757,110040.0,110030.0,0.0151]
[1749598942224,0.78917757,110040.0,110030.0,0.0151]
[1749598942499,0.34,110040.0,110030.0,0.0307]
[1749598942994,0.78917757,110040.0,110030.0,0.0307]
[1749598943236,0.78917757,110040.0,110030.0,0.4307]
[1749598946210,0.34,110040.0,110030.0,0.0307]
[1749598946425,0.78917757,110040.0,110030.0,0.0307]
[1749598946606,0.78917757,110040.0,110030.0,0.4307]
[1749598949041,0.78917757,110040.0,110030.0,0.4151]
[1749598949253,1.23835514,110040.0,110020.0,0.3328]
[1749598949508,0.34,110040.0,110020.0,0.4241534]
[1749598949724,0.44917757,110030.0,110020.0,0.8241534]
[1749598949950,0.44917757,110030.0,110020.0,0.7245534]
[1749598950605,0.44917757,110030.0,110020.0,0.8240734]
[1749598950822,0.44917757,110030.0,110020.0,0.73272]
[1749598951040,0.44917757,110030.0,110020.0,0.74692441]
[1749598951263,0.44917757,110030.0,110020.0,0.61620441]
[1749598951700,0.34,110040.0,110020.0,0.61620441]
[1749598951919,0.44917757,110030.0,110020.0,0.61620441]
[1749598952143,0.44917757,110030.0,110020.0,0.402]
[1749598954161,0.44917757,110030.0,110020.0,0.002]
[1749598954383,0.54865757,110030.0,110020.0,0.002]
[1749598955085,0.92779842,110030.0,110020.0,0.002]
[1749598957057,0.91859842,110030.0,110020.0,0.002]
[1749598958374,0.90319842,110030.0,110020.0,0.002]
[1749598959256,0.88821757,110030.0,110020.0,0.0175]
[1749598960370,0.88821757,110030.0,110020.0,0.4175]
[1749598961120,0.43904,110030.0,110020.0,0.4175]
[1749598961371,0.88821757,110030.0,110020.0,0.4175]
[1749598961639,0.88821757,110030.0,110020.0,0.0175]
[1749598961881,0.78917757,110030.0,110020.0,0.002]
[1749598962237,0.91275757,110030.0,110020.0,0.002]
[1749598962658,0.90355757,110030.0,110020.0,0.002]
[1749598963724,0.43888,110030.0,110020.0,0.002]
[1749598963983,0.78917757,110030.0,110020.0,0.0182]
[1749598964277,0.34,110030.0,110020.0,0.0343]
[1749598964561,0.78917757,110030.0,110020.0,0.0343]
[1749598965458,0.88797757,110030.0,110020.0,0.002]
[1749598965669,0.4388,110030.0,110020.0,0.002]
[1749598965886,0.88797757,110030.0,110020.0,0.002]
[1749598966570,0.4388,110030.0,110020.0,0.002]
[1749598966797,0.88797757,110030.0,110020.0,0.002]
[1749598969271,0.4388,110030.0,110020.0,0.002]
[1749598969483,0.34,110030.0,110020.0,0.0345]
[1749598969686,0.88773757,110030.0,110020.0,0.0345]
[1749598969929,0.88773757,110030.0,110020.0,0.002]
[1749598970347,0.78917757,110030.0,110020.0,0.002]
[1749598970558,0.88769757,110030.0,110020.0,0.002]
[1749598970761,0.88769757,110030.0,110020.0,0.0335]
[1749598971609,0.34,110030.0,110020.0,0.1248534]
[1749598972031,0.78917757,110030.0,110020.0,0.1248534]
[1749598972241,0.34,110030.0,110020.0,0.1967685]
[1749598974459,0.80371842,110050.0,110040.0,0.0161]
[1749598974668,0.90211842,110050.0,110040.0,0.0161]
[1749598974875,0.9755826,110050.0,110040.0,0.0161]
[1749598975293,0.9755826,110050.0,110030.0,0.0308]
[1749598975501,0.44917757,110040.0,110030.0,0.0308]
[1749598975710,0.44917757,110040.0,110030.0,0.4308]
[1749598977653,0.78917757,110040.0,110030.0,0.4308]
[1749598977865,1.23835514,110040.0,110030.0,0.4]
[1749598978106,0.78917757,110040.0,110030.0,0.4311]
[1749598978778,0.78917757,110040.0,110030.0,0.0311]
[1749598979203,0.78917757,110040.0,110030.0,0.4311]
[1749598982185,0.78917757,110040.0,110030.0,0.0311]
[1749598982405,0.34,110040.0,110030.0,0.1030151]
[1749598982862,0.34,110040.0,110030.0,0.5030151]
[1749598983545,0.34,110050.0,110040.0,0.0164]
[1749598983747,0.34,110050.0,110040.0,0.0329]
[1749598984186,0.78917757,110050.0,110040.0,0.0329]
[1749598984412,0.34,110050.0,110040.0,0.0329]
[1749598985290,0.34,110050.0,110040.0,0.05946392]
[1749598986150,0.78917757,110050.0,110040.0,0.45946392]
[1749598986793,0.34,110050.0,110040.0,0.45946392]
[1749598988042,0.34,110050.0,110040.0,0.53137902]
[1749598988893,0.34,110050.0,110040.0,0.45946392]
[1749598989319,0.34,110050.0,110040.0,0.05946392]
[1749598989735,0.34,110050.0,110040.0,0.45946392]
[1749598990165,0.78917757,110050.0,110040.0,0.45946392]
[1749598992800,0.78917757,110050.0,110040.0,0.05946392]
[1749598993225,0.78917757,110050.0,110040.0,0.45946392]
[1749598994488,0.34,110050.0,110040.0,0.45946392]
[1749598994732,0.78917757,110050.0,110040.0,0.45946392]
[1749598994938,0.78917757,110050.0,110040.0,0.55730392]
[1749598995175,0.34,110050.0,110040.0,0.55730392]
[1749598995392,0.34,110050.0,110040.0,0.62921902]
[1749598996225,0.34,110050.0,110040.0,0.15730392]
[1749598996846,0.45865099,110060.0,110040.0,0.59631902]
[1749598997091,0.79865099,110060.0,110050.0,0.0326]
[1749599000392,0.34947342,110060.0,110050.0,0.0326]
[1749599000615,0.79865099,110060.0,110050.0,0.4326]
[1749599002615,0.34947342,110060.0,110050.0,0.4326]
[1749599002822,0.79865099,110060.0,110050.0,0.4326]
[1749599003252,0.34947342,110060.0,110050.0,0.4326]
[1749599003458,0.79865099,110060.0,110050.0,0.4326]
[1749599003587,0.79865099,110060.0,110050.0,0.0326]
[1749599004022,0.79865099,110060.0,110050.0,0.016]
[1749599005131,0.34,110050.0,110030.0,0.0873151]
[1749599005333,0.89835514,110040.0,110030.0,0.0873151]
[1749599005546,0.44917757,110040.0,110030.0,0.5029151]
[1749599008887,0.464652,110050.0,110030.0,0.1029151]
[1749599009313,0.44917757,110040.0,110030.0,0.4875151]
[1749599009723,0.44917757,110040.0,110030.0,0.5036151]
[1749599010608,0.89835514,110040.0,110030.0,0.5036151]
[1749599011025,0.89835514,110040.0,110030.0,0.4719151]
[1749599011252,0.78917757,110040.0,110030.0,0.4719151]
[1749599012141,0.78917757,110040.0,110030.0,0.4876151]
[1749599012360,1.32970854,110040.0,110030.0,0.0719151]
[1749599012580,0.34,110030.0,110020.0,0.0739151]
[1749599012806,0.78917757,110030.0,110020.0,0.4739151]
[1749599013025,0.78917757,110030.0,110020.0,0.4896151]
[1749599013262,0.78917757,110030.0,110020.0,0.0896151]
[1749599013686,0.78917757,110030.0,110020.0,0.4896151]
[1749599016611,0.78917757,110030.0,110020.0,0.0896151]
[1749599016832,0.78917757,110030.0,110020.0,0.0739151]
[1749599017045,0.43688,110030.0,110020.0,0.002]
[1749599017259,0.88605757,110030.0,110020.0,0.05594995]
[1749599017477,0.43688,110030.0,110020.0,0.05594995]
[1749599017700,0.88605757,110030.0,110020.0,0.05594995]
[1749599018130,1.00211097,110030.0,110020.0,0.05594995]
[1749599019270,1.01665182,110030.0,110020.0,0.05594995]
[1749599019473,1.01665182,110030.0,110020.0,0.002]
[1749599020136,0.99187182,110030.0,110020.0,0.002]
[1749599021012,1.01657182,110030.0,110020.0,0.002]
[1749599024073,0.56739425,110030.0,110020.0,0.002]
[1749599024282,1.01657182,110030.0,110020.0,0.002]
[1749599024724,1.00737182,110030.0,110020.0,0.002]
[1749599025607,1.01657182,110030.0,110020.0,0.002]
[1749599027126,1.04383182,110030.0,110020.0,0.002]
[1749599027349,1.02929097,110030.0,110020.0,0.002]
[1749599027982,1.04383182,110030.0,110020.0,0.002]
[1749599028654,1.03463182,110030.0,110020.0,0.002]
[1749599028862,1.01913182,110030.0,110020.0,0.002]
[1749599029721,0.81643757,110030.0,110020.0,0.0334]
[1749599029958,0.91295757,110030.0,110020.0,0.0334]
[1749599030446,0.91295757,110030.0,110020.0,0.08734995]
[1749599031069,0.91295757,110030.0,110020.0,0.07104995]
[1749599031276,1.00431097,110030.0,110020.0,0.0171]
[1749599031482,0.91295757,110030.0,110020.0,0.0171]
[1749599031690,0.91295757,110030.0,110020.0,0.033]
[1749599032736,0.91295757,110030.0,110020.0,0.433]
[1749599034230,0.91295757,110030.0,110020.0,0.48694995]
[1749599034450,1.01885182,110030.0,110020.0,0.05594995]
[1749599034682,1.01885182,110030.0,110020.0,0.0173]
[1749599036019,0.46366,110030.0,110020.0,0.033]
[1749599036305,0.4637,110030.0,110020.0,0.08694995]
[1749599036532,0.91287757,110030.0,110020.0,0.08694995]
[1749599037613,0.91287757,110030.0,110020.0,0.48694995]
[1749599039104,0.81643757,110030.0,110020.0,0.48694995]
[1749599039789,0.36726,110030.0,110020.0,0.48694995]
[1749599039997,0.81643757,110030.0,110020.0,0.48694995]
[1749599040426,0.44917757,110040.0,110020.0,0.033]
[1749599040642,0.123575,110040.0,110030.0,0.08639398]
[1749599040875,0.463575,110040.0,110030.0,0.08639398]
[1749599041110,0.367255,110040.0,110030.0,0.08639398]
[1749599041346,0.43632,110040.0,110030.0,0.08639398]
[1749599041576,0.027253,110050.0,110040.0,0.0324]
[1749599041807,0.47643057,110050.0,110040.0,0.08638101]
[1749599042252,0.78917757,110050.0,110040.0,0.08638101]
[1749599044490,0.78917757,110050.0,110040.0,0.0324]
[1749599045183,0.34,110050.0,110040.0,0.0324]
[1749599045415,0.34,110050.0,110040.0,0.48633092]
[1749599045416,0.78917757,110050.0,110040.0,0.48633092]
[1749599045627,0.78917757,110050.0,110040.0,0.4324]
[1749599046092,0.34,110050.0,110040.0,0.5043151]
[1749599046309,0.78917757,110050.0,110040.0,0.5043151]
[1749599046961,0.34,110050.0,110040.0,0.5043151]
[1749599047176,0.44917757,110060.0,110040.0,0.61029052]
[1749599047403,0.58317028,110070.0,110060.0,0.0159]
[1749599047622,0.58317028,110070.0,110060.0,0.0312]
[1749599047841,0.47399271,110070.0,110060.0,0.0312]
[1749599048055,0.47407271,110070.0,110060.0,0.08509712]
[1749599048270,0.47407271,110070.0,110060.0,0.0312]
[1749599048707,1.37242785,110070.0,110060.0,0.0312]
[1749599050031,1.27566785,110070.0,110060.0,0.0312]
[1749599050258,1.37242785,110070.0,110060.0,0.0312]
[1749599050474,1.37246785,110070.0,110060.0,0.0312]
[1749599051332,0.368249,110070.0,110060.0,0.0312]
[1749599051577,0.79017757,110070.0,110060.0,0.0312]
[1749599051789,0.79017757,110070.0,110060.0,0.4312]
[1749599052000,0.79017757,110070.0,110060.0,0.0312]
[1749599052215,0.79017757,110070.0,110060.0,0.08509712]
[1749599052417,0.79017757,110070.0,110060.0,0.4312]
[1749599053489,0.341,110070.0,110060.0,0.4312]
[1749599053701,0.79017757,110070.0,110060.0,0.4312]
[1749599055010,0.341,110070.0,110060.0,0.4312]
[1749599055236,0.79017757,110070.0,110060.0,0.48509712]
[1749599056541,0.79017757,110070.0,110060.0,0.52093638]
[1749599059128,0.341,110070.0,110060.0,0.52093638]
[1749599059739,0.79017757,110070.0,110060.0,0.52093638]
[1749599059938,0.341,110070.0,110060.0,0.52093638]
[1749599060108,0.79017757,110070.0,110060.0,0.52093638]
[1749599061148,0.341,110070.0,110060.0,0.52093638]
[1749599061580,0.79017757,110070.0,110060.0,0.52093638]
[1749599061767,0.79017757,110070.0,110060.0,0.58173712]
[1749599061768,0.341,110070.0,110060.0,0.58173712]
[1749599062424,0.341,110070.0,110060.0,0.67309052]
[1749599062627,0.341,110070.0,110060.0,0.6191934]
[1749599064276,0.341,110070.0,110060.0,0.6911085]
[1749599064722,0.341,110070.0,110060.0,0.2911085]
[1749599065147,0.341,110070.0,110060.0,0.6911085]
[1749599068056,0.79017757,110070.0,110060.0,0.6911085]
[1749599069058,0.341,110070.0,110060.0,0.6911085]
[1749599069286,0.79017757,110070.0,110060.0,0.6911085]
[1749599071648,0.79017757,110070.0,110060.0,0.5944685]
[1749599071869,0.79017757,110070.0,110060.0,0.6910285]
[1749599072936,0.79017757,110070.0,110060.0,0.6909885]
[1749599073559,0.79017757,110070.0,110060.0,0.6190734]
[1749599074596,0.79017757,110070.0,110060.0,0.5225534]
[1749599074804,0.79017757,110070.0,110060.0,0.6189934]
[1749599075225,0.79017757,110070.0,110060.0,0.69089812]
[1749599075426,0.79017757,110070.0,110060.0,0.6189934]
[1749599075629,0.79017757,110070.0,110060.0,0.70877343]
[1749599075837,0.79017757,110070.0,110060.0,0.6189934]
[1749599076046,0.79017757,110070.0,110060.0,0.70877343]
[1749599076492,0.79017757,110070.0,110060.0,0.52098003]
[1749599076977,0.79017757,110070.0,110060.0,0.52764]
[1749599076978,1.23935514,110070.0,110060.0,0.52764]
[1749599077189,1.23935514,110070.0,110060.0,0.12764]
[1749599077428,1.23935514,110070.0,110060.0,0.19958071]
[1749599077640,1.23935514,110070.0,110060.0,0.59959319]
[1749599077859,0.341,110070.0,110060.0,0.59959371]
[1749599078068,0.79017757,110070.0,110060.0,0.52764]
[1749599078476,0.341,110070.0,110060.0,0.52764]
[1749599078683,0.79017757,110070.0,110060.0,0.59959895]
[1749599078887,0.79017757,110070.0,110060.0,0.50315895]
[1749599079563,0.79017757,110070.0,110060.0,0.4312]
[1749599080636,0.79017757,110070.0,110060.0,0.0312]
[1749599081098,0.79017757,110070.0,110060.0,0.5225534]
[1749599081311,0.79017757,110070.0,110060.0,0.61233343]
[1749599081312,0.341,110070.0,110060.0,0.61233343]
[1749599081519,0.79017757,110070.0,110060.0,0.61233343]
[1749599083412,0.341,110070.0,110060.0,0.61233343]
[1749599085998,0.341,110070.0,110060.0,0.21233343]
[1749599086423,0.341,110070.0,110060.0,0.61233343]
[1749599089616,0.341,110070.0,110060.0,0.81233343]
[1749599090720,0.341,110070.0,110060.0,0.7225534]
[1749599091142,0.45917757,110080.0,110060.0,0.6913534]
[1749599091344,0.45917757,110080.0,110070.0,0.10327402]
[1749599091546,0.01,110080.0,110070.0,0.10327402]
[1749599091962,0.45917757,110080.0,110070.0,0.10327402]
[1749599092214,0.01,110080.0,110070.0,0.20019402]
[1749599092620,0.01,110080.0,110070.0,0.29154742]
[1749599095014,0.01,110080.0,110070.0,0.69154742]
[1749599095425,0.01,110080.0,110070.0,0.70068444]
[1749599096229,0.45917757,110080.0,110070.0,0.70068444]
[1749599096463,0.45917757,110080.0,110070.0,0.69154742]
[1749599097343,0.45917757,110080.0,110070.0,0.59462742]
[1749599097556,0.45917757,110080.0,110070.0,0.58505402]
[1749599097785,0.45917757,110080.0,110070.0,0.60005402]
[1749599098223,0.01,110080.0,110070.0,0.60005402]
[1749599098857,0.45917757,110080.0,110070.0,0.60005402]
[1749599099272,0.45917757,110080.0,110070.0,0.60925336]
[1749599099972,0.01,110080.0,110070.0,0.60925336]
[1749599100178,0.45917757,110080.0,110070.0,0.60925336]
[1749599100384,0.45917757,110080.0,110070.0,0.51237336]
[1749599100795,0.45917757,110080.0,110070.0,0.60973336]
[1749599101012,0.45917757,110080.0,110070.0,0.53775934]
[1749599101223,0.45917757,110080.0,110070.0,0.4312]
[1749599101482,0.45917757,110080.0,110070.0,0.52856]
[1749599101694,0.45917757,110080.0,110070.0,0.60046831]
[1749599101913,0.45917757,110080.0,110070.0,0.50310831]
[1749599102123,0.45917757,110080.0,110070.0,0.60042831]
[1749599102341,0.45917757,110080.0,110070.0,0.50310831]
[1749599102561,0.45917757,110080.0,110070.0,0.60042831]
[1749599103179,0.45917757,110080.0,110070.0,0.50310831]
[1749599103390,0.53929533,110080.0,110070.0,0.16918831]
[1749599103603,0.47447757,110080.0,110070.0,0.07190831]
[1749599103814,0.48367757,110080.0,110070.0,0.07190831]
[1749599104431,0.48367757,110080.0,110060.0,0.58568831]
[1749599104643,0.44917757,110070.0,110060.0,0.58568831]
[1749599105086,0.44917757,110070.0,110060.0,0.48840831]
[1749599105296,0.89835514,110070.0,110060.0,0.07190831]
[1749599105935,0.1317,110080.0,110060.0,0.47190831]
[1749599106146,0.44917757,110070.0,110060.0,0.48830831]
[1749599108506,0.158946,110080.0,110060.0,0.48830831]
[1749599108716,0.498946,110080.0,110070.0,0.05396001]
[1749599108901,0.94812357,110080.0,110070.0,0.05396001]
[1749599109338,0.92362357,110080.0,110070.0,0.05396001]
[1749599110140,0.58362357,110080.0,110070.0,0.05396001]
[1749599111941,1.04830114,110080.0,110070.0,0.05396001]
[1749599112199,0.60832357,110080.0,110070.0,0.05396001]
[1749599112450,1.05750114,110080.0,110070.0,0.05396001]
[1749599112707,1.48885454,110080.0,110070.0,0.05396001]
[1749599115210,1.50339539,110080.0,110070.0,0.05396001]
[1749599117958,1.03047697,110080.0,110070.0,0.05396001]
[1749599118182,1.01497697,110080.0,110070.0,0.05396001]
[1749599118422,0.5657994,110080.0,110070.0,0.05396001]
[1749599118680,1.01497697,110080.0,110070.0,0.05396001]
[1749599119225,1.01497697,110080.0,110070.0,0.07046001]
[1749599120750,0.91777697,110080.0,110070.0,0.07046001]
[1749599121016,0.92350357,110080.0,110070.0,0.08606001]
[1749599121350,0.037246,110080.0,110070.0,0.08606001]
[1749599121566,0.45917757,110080.0,110070.0,0.08606001]
[1749599121819,0.01,110080.0,110070.0,0.17673889]
[1749599122073,0.45917757,110080.0,110070.0,0.17673889]
[1749599122339,0.45917757,110080.0,110070.0,0.10400831]
[1749599122645,0.45917757,110080.0,110070.0,0.0321]
[1749599123600,0.45917757,110080.0,110070.0,0.4321]
[1749599123850,0.01,110080.0,110070.0,0.4321]
[1749599124079,0.45917757,110080.0,110070.0,0.4321]
[1749599124298,0.45917757,110080.0,110070.0,0.50400831]
[1749599125184,0.01,110080.0,110070.0,0.50400831]
[1749599125607,0.45917757,110080.0,110070.0,0.50400831]
[1749599126667,0.45917757,110080.0,110070.0,0.10400831]
[1749599127103,0.45917757,110080.0,110070.0,0.50400831]
[1749599127735,0.45917757,110080.0,110070.0,0.10400831]
[1749599128372,0.45917757,110080.0,110070.0,0.50400831]
[1749599128584,0.45917757,110080.0,110070.0,0.10400831]
[1749599130076,0.01,110080.0,110070.0,0.10400831]
[1749599130324,0.45917757,110080.0,110070.0,0.10400831]
[1749599131575,0.79917757,110080.0,110070.0,0.10400831]
[1749599132740,0.45917757,110080.0,110070.0,0.10400831]
[1749599133116,0.01,110080.0,110070.0,0.50400831]
[1749599134188,0.01,110080.0,110070.0,0.4321]
[1749599135093,0.01,110080.0,110070.0,0.50402926]
[1749599135290,0.45917757,110080.0,110070.0,0.50402926]
[1749599136091,0.45917757,110080.0,110070.0,0.10402926]
[1749599136671,0.45917757,110080.0,110070.0,0.50402926]
[1749599138109,0.01,110080.0,110070.0,0.50402926]
[1749599138326,0.45917757,110080.0,110070.0,0.50402926]
[1749599139172,0.01,110080.0,110070.0,0.50402926]
[1749599139343,0.45917757,110080.0,110070.0,0.50402926]
[1749599139580,0.45917757,110080.0,110070.0,0.10402926]
[1749599139808,0.01,110080.0,110070.0,0.10402926]
[1749599140030,0.01,110080.0,110070.0,0.50402926]
[1749599140256,0.01,110080.0,110070.0,0.4321]
[1749599140497,0.01,110080.0,110070.0,0.52206875]
[1749599141832,0.01,110080.0,110070.0,0.61342215]
[1749599142050,0.01,110080.0,110070.0,0.81342215]
[1749599145977,0.01,110080.0,110070.0,0.91026215]
[1749599147822,0.01,110080.0,110070.0,0.91022215]
[1749599149033,0.01,110080.0,110070.0,0.81342215]
[1749599149212,0.01,110080.0,110070.0,0.91018215]
[1749599149213,0.45917757,110080.0,110070.0,0.91018215]
[1749599149756,0.45917757,110080.0,110070.0,0.81882875]
[1749599149957,0.45917757,110080.0,110070.0,0.72206875]
[1749599150156,0.45917757,110080.0,110070.0,0.81878875]
[1749599150832,0.45917757,110080.0,110070.0,0.61874875]
[1749599152008,0.45917757,110080.0,110070.0,0.61870875]
[1749599153031,0.45917757,110080.0,110070.0,0.61866875]
[1749599153880,0.79917757,110080.0,110070.0,0.61866875]
[1749599154462,0.79917757,110080.0,110070.0,0.21866875]
[1749599154869,0.79917757,110080.0,110070.0,0.61866875]
[1749599156534,0.35,110080.0,110070.0,0.61866875]
[1749599156969,0.79917757,110080.0,110070.0,0.61866875]
[1749599158004,0.35,110080.0,110070.0,0.21866875]
[1749599158423,0.35,110080.0,110070.0,0.61866875]
[1749599159456,0.35,110080.0,110070.0,0.91002215]
[1749599159886,0.35,110080.0,110070.0,1.35919972]
[1749599160097,0.35,110080.0,110070.0,0.91002215]
[1749599166214,0.32,110080.0,110070.0,0.91002215]
[1749599168673,0.45117757,110090.0,110080.0,0.0307]
[1749599168813,0.002,110090.0,110080.0,0.10264958]
[1749599169016,0.45117757,110090.0,110080.0,0.10264958]